fUST/lending_fUST_20251112
["ID","MTS","AMOUNT","RATE_DAILY","PERIOD"]
[393704805,1762935038394,-500.0,0.00018565,2]
[393704806,1762935038404,-500.0,0.00018565,2]
[393704807,1762935038414,-500.0,0.00018565,2]
[393704808,1762935038424,-500.0,0.00018565,2]
[393704809,1762935038434,-500.0,0.00018565,2]
[393704810,1762935038444,-500.0,0.00018565,2]
[393704811,1762935038454,-500.0,0.00018565,2]
[393704812,1762935038464,-500.0,0.00018565,2]
[393704813,1762935038474,-500.0,0.00018565,2]
[393704814,1762935038484,-500.0,0.00018565,2]
[393704815,1762935038494,-500.0,0.00018565,2]
[393704816,1762935038504,-608.08352561,0.00018565,2]
[393704817,1762935038513,-500.0,0.00018565,2]
[393704818,1762935038523,-500.0,0.00018565,2]
[393704819,1762935038532,-500.0,0.00018565,2]
[393704820,1762935038542,-500.0,0.00018565,2]
[393704821,1762935038552,-500.0,0.00018565,2]
[393704822,1762935038562,-500.0,0.00018565,2]
[393704823,1762935038571,-500.0,0.00018565,2]
[393704824,1762935038581,-500.0,0.00018565,2]
[393704825,1762935038591,-500.0,0.00018565,2]
[393704826,1762935038601,-500.0,0.00018565,2]
[393704827,1762935038611,-500.0,0.00018565,2]
[393704828,1762935038621,-309.16066504,0.00018565,2]
[393704829,1762935038631,-500.0,0.00018565,2]
[393704830,1762935038641,-500.0,0.00018565,2]
[393704831,1762935038651,-500.0,0.00018565,2]
[393704832,1762935038660,-500.0,0.00018565,2]
[393704833,1762935038670,-500.0,0.00018565,2]
[393704834,1762935038680,-500.0,0.00018565,2]
[393704835,1762935038690,-500.0,0.00018565,2]
[393704836,1762935038700,-500.0,0.00018565,2]
[393704837,1762935038710,-500.0,0.00018565,2]
[393704838,1762935038720,-500.0,0.00018565,2]
[393704839,1762935038730,-500.0,0.00018565,2]
[393704840,1762935038740,-500.0,0.00018565,2]
[393704841,1762935038755,-500.0,0.00018565,2]
[393704842,1762935038764,-500.0,0.00018565,2]
[393704843,1762935038773,-500.0,0.00018565,2]
[393704844,1762935038783,-500.0,0.00018565,2]
[393704845,1762935038795,-500.0,0.00018565,2]
[393704846,1762935038804,-500.0,0.00018565,2]
[393704847,1762935038814,-500.0,0.00018565,2]
[393704848,1762935038826,-500.0,0.00018565,2]
[393704849,1762935038836,-500.0,0.00018565,2]
[393704850,1762935038846,-500.0,0.00018565,2]
[393704851,1762935038856,-500.0,0.00018565,2]
[393704852,1762935038865,-500.0,0.00018565,2]
[393704853,1762935038875,-500.0,0.00018565,2]
[393704854,1762935038884,-500.0,0.00018565,2]
[393704855,1762935038894,-500.0,0.00018565,2]
[393704856,1762935038903,-500.0,0.00018565,2]
[393704857,1762935038912,-500.0,0.00018565,2]
[393704858,1762935038922,-500.0,0.00018565,2]
[393704859,1762935038932,-500.0,0.00018565,2]
[393704860,1762935038943,-500.0,0.00018565,2]
[393704861,1762935038953,-500.0,0.00018565,2]
[393704862,1762935038963,-500.0,0.00018565,2]
[393704863,1762935038972,-500.0,0.00018565,2]
[393704864,1762935038982,-500.0,0.00018565,2]
[393704865,1762935038992,-500.0,0.00018565,2]
[393704866,1762935039002,-500.0,0.00018565,2]
[393704867,1762935039012,-500.0,0.00018565,2]
[393704868,1762935039021,-500.0,0.00018565,2]
[393704869,1762935039031,-500.0,0.00018565,2]
[393704870,1762935039041,-341.00591954,0.00018565,2]
[393704871,1762935039051,-500.0,0.00018565,2]
[393704872,1762935039062,-500.0,0.00018565,2]
[393704873,1762935039071,-500.0,0.00018565,2]
[393704874,1762935039081,-500.0,0.00018565,2]
[393704875,1762935039090,-500.0,0.00018565,2]
[393704876,1762935039100,-500.0,0.00018565,2]
[393704877,1762935039109,-500.0,0.00018565,2]
[393704878,1762935039119,-500.0,0.00018565,2]
[393704879,1762935039129,-500.0,0.00018565,2]
[393704880,1762935039139,-500.0,0.00018565,2]
[393704881,1762935039148,-500.0,0.00018565,2]
[393704882,1762935039158,-500.0,0.00018565,2]
[393704883,1762935039167,-500.0,0.00018565,2]
[393704884,1762935039177,-500.0,0.00018565,2]
[393704885,1762935039186,-500.0,0.00018565,2]
[393704886,1762935039196,-500.0,0.00018565,2]
[393704887,1762935039205,-500.0,0.00018565,2]
[393704888,1762935039215,-500.0,0.00018565,2]
[393704889,1762935039223,-500.0,0.00018565,2]
[393704890,1762935039233,-500.0,0.00018565,2]
[393704891,1762935039242,-500.0,0.00018565,2]
[393704892,1762935039252,-209.33295,0.00018565,2]
[393704893,1762935039265,-500.0,0.00018565,2]
[393704894,1762935039275,-500.0,0.00018565,2]
[393704895,1762935039286,-500.0,0.00018565,2]
[393704896,1762935039295,-500.0,0.00018565,2]
[393704897,1762935039305,-500.0,0.00018565,2]
[393704898,1762935039315,-500.0,0.00018565,2]
[393704899,1762935039325,-500.0,0.00018565,2]
[393704900,1762935039335,-500.0,0.00018565,2]
[393704901,1762935039345,-500.0,0.00018565,2]
[393704902,1762935039354,-500.0,0.00018565,2]
[393704903,1762935039363,-292.17323576,0.00018565,2]
[393704904,1762935039373,-500.0,0.00018565,2]
[393704905,1762935039383,-500.0,0.00018565,2]
[393704906,1762935039392,-500.0,0.00018565,2]
[393704907,1762935039402,-500.0,0.00018565,2]
[393704908,1762935039412,-500.0,0.00018565,2]
[393704909,1762935039421,-500.0,0.00018565,2]
[393704910,1762935039431,-500.0,0.00018565,2]
[393704911,1762935039441,-500.0,0.00018565,2]
[393704912,1762935039451,-500.0,0.00018565,2]
[393704913,1762935039462,-500.0,0.00018565,2]
[393704914,1762935039471,-500.0,0.00018565,2]
[393704915,1762935039571,-500.0,0.00018565,2]
[393704916,1762935039581,-500.0,0.00018565,2]
[393704917,1762935039591,-500.0,0.00018565,2]
[393704918,1762935039602,-28410.83580501,0.00018566,2]
[393704919,1762935039612,-8742.00129222,0.00018616,2]
[393704920,1762935039622,-367.72551751,0.00018665,2]
[393704921,1762935039631,-1200.0,0.00018666,2]
[393704922,1762935039641,-6203.98518668,0.00018666,2]
[393704923,1762935039654,-4359.00647253,0.00018666,2]
[393704941,1762935040375,-500.0,0.00018565,2]
[393704942,1762935040386,-6319.58949586,0.00018666,2]
[393705242,1762935046560,-11051.9585147,0.00018666,2]
[393705485,1762935109443,-151.0,0.00019558,7]
[393705486,1762935109473,-151.0,0.00019558,7]
[393705487,1762935109498,-151.0,0.00019558,7]
[393705488,1762935109523,-239.491418,0.00019659,7]
[393705489,1762935109550,-573.198114,0.0001999,7]
[393705490,1762935109583,-573.198114,0.0001999,7]
[393705491,1762935109609,-573.198114,0.0001999,7]
[393705492,1762935109634,-573.198114,0.0001999,7]
[393705493,1762935121170,-152.717811,0.00020516,7]
[393705494,1762935121193,-573.198114,0.00020516,7]
[393705495,1762935121217,-573.198114,0.00020516,7]
[393705496,1762935121240,-573.198114,0.00020516,7]
[393705497,1762935121265,-573.198114,0.00020516,7]
[393705498,1762935121290,-151.0,0.00020516,7]
[393705499,1762935121314,-151.0,0.00020516,7]
[393705500,1762935121337,-190.279637,0.00020516,7]
[393705505,1762935941459,161.99999999,0.000328,120]
[393705511,1762936125495,352.912651,0.00013699,2]
[393705560,1762936238337,-151.92672022,0.0001569,2]
[393705561,1762936238348,-273.1946283,0.0001569,2]
[393705562,1762936238358,-308.96566659,0.00016259,2]
[393705569,1762936240544,-887.55368841,0.00016259,2]
[393705570,1762936240554,-150.0,0.0001675,2]
[393705571,1762936240564,-165.614243,0.00016985,2]
[393705572,1762936240574,-300.0,0.00016999,2]
[393705573,1762936240584,-300.0,0.00016999,2]
[393705574,1762936240594,-300.0,0.00016999,2]
[393705575,1762936240603,-1200.0,0.00016999,2]
[393705576,1762936240614,-300.0,0.00016999,2]
[393705577,1762936240624,-22127.80153063,0.00017,2]
[393705578,1762936240633,-330.8457417,0.0001717,2]
[393705579,1762936240644,-500.0,0.00017217,2]
[393705580,1762936240654,-500.0,0.00017217,2]
[393705581,1762936240664,-500.0,0.00017217,2]
[393705582,1762936240674,-1230.25513036,0.00017217,2]
[393705583,1762936240683,-500.0,0.00017217,2]
[393705584,1762936240695,-500.0,0.00017217,2]
[393705585,1762936240705,-500.0,0.00017217,2]
[393705586,1762936240715,-1230.25513036,0.00017217,2]
[393705587,1762936240724,-500.0,0.00017217,2]
[393705588,1762936240735,-500.0,0.00017217,2]
[393705589,1762936240745,-1230.25513036,0.00017217,2]
[393705590,1762936240754,-500.0,0.00017217,2]
[393705591,1762936240766,-456.45372507,0.00017217,2]
[393705592,1762936240776,-500.0,0.00017217,2]
[393705593,1762936240785,-500.0,0.00017217,2]
[393705594,1762936240795,-1202.70856635,0.00017217,2]
[393705595,1762936240810,-27.54656401,0.00017217,2]
[393705596,1762936240822,-494.7293087,0.00017217,2]
[393705622,1762936243687,-5.2706913,0.00017217,2]
[393705623,1762936243697,-500.0,0.00017217,2]
[393705624,1762936243707,-500.0,0.00017217,2]
[393705625,1762936243716,-1230.25513036,0.00017217,2]
[393705626,1762936243726,-620.933295,0.00017217,2]
[393705627,1762936243736,-500.0,0.00017217,2]
[393705628,1762936243746,-927.96772233,0.00017217,2]
[393705635,1762936407694,565.46857833,0.00032,120]
[393705637,1762936536960,-973.00747736,0.0001596,2]
[393705638,1762936542284,-378.60414384,0.0001596,2]
[393705639,1762936544899,-300.0,0.0001596,2]
[393705640,1762936547039,-330.8457417,0.0001596,2]
[393705641,1762936548880,-200.0,0.0001596,2]
[393705642,1762936686933,-152.14,0.00015485,2]
[393705643,1762936686958,-88.96961433,0.00015485,2]
[393705645,1762936931924,240.6,0.00018,10]
[393705646,1762936947884,240.6,0.00018,10]
[393705647,1762937030913,157.0,0.000328,120]
[393705650,1762937136904,-500.0,0.00014753,2]
[393705651,1762937138512,-477.29592359,0.00014753,2]
[393705661,1762937346250,-500.0,0.00014653,2]
[393705662,1762937349787,-160.0,0.00014653,2]
[393705663,1762937351536,-669.1542583,0.00014653,2]
[393705664,1762937353054,-219.0,0.00014653,2]
[393705665,1762937355390,-266.334832,0.00014653,2]
[393705666,1762937428118,204641.55846291,0.00037662,20]
[393705672,1762937432646,-3278.97370169,0.00014653,2]
[393705673,1762937432658,-22.70407641,0.00014753,2]
[393705674,1762937432667,-1200.0,0.00014904,2]
[393705675,1762937432676,-300.0,0.00014904,2]
[393705677,1762937432685,-300.0,0.00014904,2]
[393705679,1762937432694,-300.0,0.00014904,2]
[393705681,1762937432703,-1200.0,0.00014904,2]
[393705683,1762937432712,-300.0,0.00014904,2]
[393705684,1762937432720,-401.38791031,0.00014905,2]
[393705685,1762937432729,-685.2082813,0.00014905,2]
[393705686,1762937432738,-1232.14153143,0.00014905,2]
[393705687,1762937432747,-23075.55799684,0.00014926,2]
[393705688,1762937432755,-4310.64579551,0.00014926,2]
[393705689,1762937432764,-257.40786226,0.00015026,2]
[393705690,1762937432773,-1652.96500274,0.00015026,2]
[393705691,1762937432783,-500.0,0.00015026,2]
[393705692,1762937432792,-500.0,0.00015026,2]
[393705693,1762937432801,-1652.96500274,0.00015026,2]
[393705694,1762937432810,-500.0,0.00015026,2]
[393705695,1762937432818,-500.0,0.00015026,2]
[393705696,1762937432827,-500.0,0.00015026,2]
[393705697,1762937432837,-1652.96500274,0.00015026,2]
[393705698,1762937432845,-500.0,0.00015026,2]
[393705699,1762937432854,-500.0,0.00015026,2]
[393705700,1762937432862,-500.0,0.00015026,2]
[393705701,1762937432871,-1652.96500274,0.00015026,2]
[393705702,1762937432880,-500.0,0.00015026,2]
[393705703,1762937432889,-500.0,0.00015026,2]
[393705704,1762937432898,-1652.96500274,0.00015026,2]
[393705705,1762937432906,-500.0,0.00015026,2]
[393705707,1762937432915,-470.06002407,0.00015026,2]
[393705709,1762937432924,-500.0,0.00015026,2]
[393705711,1762937432934,-1652.96500274,0.00015026,2]
[393705713,1762937432944,-500.0,0.00015026,2]
[393705715,1762937432954,-1652.96500274,0.00015026,2]
[393705717,1762937432963,-1652.96500274,0.00015026,2]
[393705719,1762937432972,-500.0,0.00015026,2]
[393705721,1762937432981,-500.0,0.00015026,2]
[393705723,1762937432991,-1652.96500274,0.00015026,2]
[393705725,1762937433000,-500.0,0.00015026,2]
[393705727,1762937433009,-1652.96500274,0.00015026,2]
[393705728,1762937433019,-500.0,0.00015026,2]
[393705730,1762937433027,-1652.96500274,0.00015026,2]
[393705732,1762937433038,-500.0,0.00015026,2]
[393705734,1762937433047,-1652.96500274,0.00015026,2]
[393705736,1762937433056,-500.0,0.00015026,2]
[393705738,1762937433066,-1652.96500274,0.00015026,2]
[393705740,1762937433075,-500.0,0.00015026,2]
[393705742,1762937433084,-1652.96500274,0.00015026,2]
[393705744,1762937433093,-500.0,0.00015026,2]
[393705746,1762937433102,-1652.96500274,0.00015026,2]
[393705747,1762937433111,-1652.96500274,0.00015026,2]
[393705749,1762937433121,-1652.96500274,0.00015026,2]
[393705750,1762937433131,-1652.96500274,0.00015026,2]
[393705752,1762937433140,-500.0,0.00015026,2]
[393705754,1762937433149,-500.0,0.00015026,2]
[393705756,1762937433159,-1652.96500274,0.00015026,2]
[393705758,1762937433168,-500.0,0.00015026,2]
[393705760,1762937433178,-1652.96500274,0.00015026,2]
[393705762,1762937433187,-1652.96500274,0.00015026,2]
[393705764,1762937433197,-500.0,0.00015026,2]
[393705766,1762937433206,-500.0,0.00015026,2]
[393705768,1762937433215,-1652.96500274,0.00015026,2]
[393705770,1762937433225,-1652.96500274,0.00015026,2]
[393705772,1762937433235,-1652.96500274,0.00015026,2]
[393705774,1762937433244,-500.0,0.00015026,2]
[393705776,1762937433254,-1652.96500274,0.00015026,2]
[393705778,1762937433264,-500.0,0.00015026,2]
[393705781,1762937433274,-1652.96500274,0.00015026,2]
[393705783,1762937433283,-1652.96500274,0.00015026,2]
[393705785,1762937433292,-603.31978772,0.00015026,2]
[393705787,1762937433301,-1652.96500274,0.00015026,2]
[393705788,1762937433311,-1652.96500274,0.00015026,2]
[393705790,1762937433320,-500.0,0.00015026,2]
[393705792,1762937433330,-1652.96500274,0.00015026,2]
[393705794,1762937433339,-1652.96500274,0.00015026,2]
[393705796,1762937433348,-1652.96500274,0.00015026,2]
[393705798,1762937433357,-1652.96500274,0.00015026,2]
[393705800,1762937433366,-1652.96500274,0.00015026,2]
[393705802,1762937433375,-1652.96500274,0.00015026,2]
[393705804,1762937433385,-1652.96500274,0.00015026,2]
[393705806,1762937433394,-1652.96500274,0.00015026,2]
[393705808,1762937433404,-1652.96500274,0.00015026,2]
[393705810,1762937433413,-1652.96500274,0.00015026,2]
[393705812,1762937433422,-1652.96500274,0.00015026,2]
[393705814,1762937433432,-1652.96500274,0.00015026,2]
[393705816,1762937433441,-1652.96500274,0.00015026,2]
[393705818,1762937433451,-1652.96500274,0.00015026,2]
[393705820,1762937433461,-1652.96500274,0.00015026,2]
[393705822,1762937433470,-1652.96500274,0.00015026,2]
[393705824,1762937433479,-1652.96500274,0.00015026,2]
[393705826,1762937433489,-1652.96500274,0.00015026,2]
[393705828,1762937433499,-1652.96500274,0.00015026,2]
[393705830,1762937433508,-1652.96500274,0.00015026,2]
[393705832,1762937433518,-1652.96500274,0.00015026,2]
[393705834,1762937433527,-1652.96500274,0.00015026,2]
[393705836,1762937433537,-1652.96500274,0.00015026,2]
[393705838,1762937433546,-1652.96500274,0.00015026,2]
[393705840,1762937433556,-1652.96500274,0.00015026,2]
[393705842,1762937433565,-1652.96500274,0.00015026,2]
[393705844,1762937433578,-1652.96500274,0.00015026,2]
[393705845,1762937433587,-1652.96500274,0.00015026,2]
[393705847,1762937433596,-1652.96500274,0.00015026,2]
[393705848,1762937433605,-2249.33248857,0.00015026,2]
[393705850,1762937433615,-2249.33248857,0.00015026,2]
[393705851,1762937433624,-2249.33248857,0.00015026,2]
[393705853,1762937433633,-2249.33248857,0.00015026,2]
[393705855,1762937433642,-2249.33248857,0.00015026,2]
[393705856,1762937433654,-2249.33248857,0.00015026,2]
[393705858,1762937433664,-2249.33248857,0.00015026,2]
[393705860,1762937433673,-2249.33248857,0.00015026,2]
[393705861,1762937433682,-2249.33248857,0.00015026,2]
[393705863,1762937433691,-2249.33248857,0.00015026,2]
[393705864,1762937433700,-2249.33248857,0.00015026,2]
[393705866,1762937433710,-2249.33248857,0.00015026,2]
[393705868,1762937433719,-2249.33248857,0.00015026,2]
[393705869,1762937433728,-2249.33248857,0.00015026,2]
[393705871,1762937433737,-2249.33248857,0.00015026,2]
[393705873,1762937433746,-2249.33248857,0.00015026,2]
[393705874,1762937433755,-2249.33248857,0.00015026,2]
[393705876,1762937433764,-2249.33248857,0.00015026,2]
[393705878,1762937433774,-2249.33248857,0.00015026,2]
[393705879,1762937433783,-2249.33248857,0.00015026,2]
[393705881,1762937433792,-2249.33248857,0.00015026,2]
[393705882,1762937433801,-2249.33248857,0.00015026,2]
[393705884,1762937433810,-2249.33248857,0.00015026,2]
[393705886,1762937433820,-2249.33248857,0.00015026,2]
[393705887,1762937433829,-2249.33248857,0.00015026,2]
[393705889,1762937433838,-2249.33248857,0.00015026,2]
[393705891,1762937433848,-2249.33248857,0.00015026,2]
[393705892,1762937433857,-2249.33248857,0.00015026,2]
[393705894,1762937433867,-2249.33248857,0.00015026,2]
[393705896,1762937433876,-500.0,0.00015027,2]
[393705897,1762937433886,-50000.0,0.00015028,2]
[393705899,1762937433895,-151.0,0.00015028,2]
[393705900,1762937433904,-95756.78449929,0.00015028,2]
[393705902,1762937433913,-504.05847661,0.00015073,2]
[393705903,1762937433922,-500.0,0.00015073,2]
[393705905,1762937433931,-495.03106745,0.00015073,2]
[393705907,1762937433940,-500.0,0.00015073,2]
[393705908,1762937433949,-524.70181633,0.00015073,2]
[393705910,1762937433959,-477.20047628,0.00015073,2]
[393705912,1762937433968,-500.0,0.00015073,2]
[393705913,1762937433977,-500.0,0.00015073,2]
[393705915,1762937433986,-500.50435248,0.00015073,2]
[393705917,1762937433995,-500.0,0.00015073,2]
[393705919,1762937434004,-500.0,0.00015073,2]
[393705920,1762937434014,-585.09824827,0.00015073,2]
[393705922,1762937434023,-501.1527927,0.00015073,2]
[393705923,1762937434031,-500.0,0.00015073,2]
[393705925,1762937434042,-500.0,0.00015073,2]
[393705927,1762937434051,-500.0,0.00015073,2]
[393705929,1762937434061,-525.2976161,0.00015073,2]
[393705930,1762937434070,-500.0,0.00015073,2]
[393705932,1762937434079,-500.0,0.00015073,2]
[393705934,1762937434089,-503.94670184,0.00015073,2]
[393705935,1762937434098,-500.0,0.00015073,2]
[393705937,1762937434107,-500.0,0.00015073,2]
[393705938,1762937434116,-504.09306033,0.00015073,2]
[393705940,1762937434126,-500.0,0.00015301,2]
[393705942,1762937434135,-23075.5579968,0.00015437,2]
[393705943,1762937434145,-63.16038567,0.00015485,2]
[393705945,1762937434154,-150.0,0.0001552,2]
[393705947,1762937434163,-5000.0,0.00015555,2]
[393705948,1762937434173,-500.0,0.00015575,2]
[393705950,1762937434183,-1000.0,0.00015621,2]
[393705952,1762937434192,-1000.0,0.00015621,2]
[393705953,1762937434201,-500.0,0.00015621,2]
[393705955,1762937434210,-1000.0,0.00015621,2]
[393705957,1762937434219,-1000.0,0.00015621,2]
[393705959,1762937434229,-1000.0,0.00015621,2]
[393705961,1762937434242,-1000.0,0.00015621,2]
[393705962,1762937434251,-1000.0,0.00015621,2]
[393705964,1762937434261,-1004.23985669,0.00015621,2]
[393705966,1762937434270,-1000.0,0.00015621,2]
[393705968,1762937434279,-1000.0,0.00015621,2]
[393705969,1762937434288,-500.0,0.00015643,2]
[393705971,1762937434297,-500.0,0.00015643,2]
[393705973,1762937434306,-500.0,0.00015643,2]
[393705975,1762937434316,-5021.0,0.00015656,2]
[393705976,1762937434325,-500.0,0.00015693,2]
[393705978,1762937434335,-5000.0,0.00015799,2]
[393705980,1762937434344,-151.0,0.00015799,2]
[393705982,1762937434353,-155.69944327,0.00015847,2]
[393705984,1762937434362,-422.67097124,0.00015849,2]
[393705985,1762937434371,-500.0,0.00015857,2]
[393705987,1762937434380,-500.0,0.00015857,2]
[393705989,1762937434389,-151.0,0.00015857,2]
[393705990,1762937434398,-500.0,0.00015873,2]
[393705992,1762937434407,-500.0,0.00015873,2]
[393705994,1762937434416,-500.0,0.00015873,2]
[393705996,1762937434425,-500.0,0.00015873,2]
[393705997,1762937434434,-151.0,0.00015912,2]
[393705999,1762937434443,-23075.5579968,0.00015947,2]
[393706001,1762937434452,-160.0,0.00015952,2]
[393706003,1762937434462,-500.0,0.00015958,2]
[393706004,1762937434471,-500.0,0.00015959,2]
[393706006,1762937434481,-500.0,0.00015959,2]
[393706008,1762937434491,-18955.4827822,0.0001596,2]
[393706010,1762937434500,-151.0,0.00015967,2]
[393706018,1762937434589,-501.73830465,0.00015973,2]
[393706019,1762937434599,-500.0,0.00015973,2]
[393706021,1762937434608,-500.0,0.00015973,2]
[393706023,1762937434619,-500.0,0.00015973,2]
[393706025,1762937434628,-500.0,0.00015973,2]
[393706027,1762937434637,-500.0,0.00015973,2]
[393706028,1762937434646,-500.0,0.00015973,2]
[393706030,1762937434656,-500.0,0.00015973,2]
[393706032,1762937434665,-500.0,0.00015973,2]
[393706034,1762937434675,-500.57351014,0.00015973,2]
[393706035,1762937434684,-500.0,0.00015973,2]
[393706037,1762937434693,-215.09650796,0.00015973,2]
[393706039,1762937434703,-500.0,0.00015973,2]
[393706041,1762937434712,-151.0,0.00015989,2]
[393706042,1762937434721,-151.0,0.00015989,2]
[393706044,1762937434730,-769.0,0.00015989,2]
[393706046,1762937434739,-500.0,0.00015989,2]
[393706048,1762937434748,-151.0,0.00015989,2]
[393706049,1762937434757,-151.0,0.00015989,2]
[393706051,1762937434766,-152.9895855,0.00015989,2]
[393706053,1762937434776,-500.0,0.00015989,2]
[393706055,1762937434785,-500.0,0.00015989,2]
[393706056,1762937434793,-151.0,0.00016021,2]
[393706058,1762937434802,-151.0,0.00016044,2]
[393706060,1762937434812,-151.0,0.00016044,2]
[393706062,1762937434821,-769.0,0.00016044,2]
[393706063,1762937434830,-500.0,0.00016044,2]
[393706065,1762937434839,-153.07043674,0.00016044,2]
[393706067,1762937434848,-198.0,0.00016044,2]
[393706068,1762937434857,-500.0,0.00016044,2]
[393706070,1762937434867,-590.47290454,0.00016044,2]
[393706071,1762937434877,-211.39681882,0.00016076,2]
[393706072,1762937434887,-151.0,0.00016099,2]
[393706073,1762937434897,-151.0,0.00016099,2]
[393706074,1762937434908,-769.0,0.00016099,2]
[393706075,1762937434919,-500.0,0.00016099,2]
[393706076,1762937434928,-193.04631888,0.00016099,2]
[393706077,1762937434937,-151.0,0.00016153,2]
[393706078,1762937434949,-198.0,0.00016153,2]
[393706079,1762937434959,-769.0,0.00016153,2]
[393706080,1762937434969,-500.0,0.00016153,2]
[393706081,1762937434978,-1585.0,0.00016168,2]
[393706082,1762937434987,-1500.0,0.00016168,2]
[393706083,1762937434997,-695.62038484,0.00016168,2]
[393706084,1762937435006,-1500.0,0.00016168,2]
[393706085,1762937435016,-1500.0,0.00016168,2]
[393706086,1762937435024,-1500.0,0.00016168,2]
[393706087,1762937435034,-1500.0,0.00016168,2]
[393706088,1762937435043,-500.0,0.00016168,2]
[393706089,1762937435052,-1500.0,0.00016168,2]
[393706090,1762937435061,-1133.53411185,0.00016191,2]
[393706091,1762937435070,-1000.0,0.00016191,2]
[393706092,1762937435079,-891.07381029,0.00016191,2]
[393706093,1762937435088,-179.60642039,0.00016208,2]
[393706094,1762937435097,-769.0,0.00016208,2]
[393706095,1762937435107,-500.0,0.00016208,2]
[393706096,1762937435116,-926.3458209,0.00016217,2]
[393706097,1762937435125,-1000.0,0.00016241,2]
[393706098,1762937435135,-769.0,0.00016263,2]
[393706099,1762937435144,-500.0,0.00016263,2]
[393706100,1762937435153,-300.0,0.00016278,2]
[393706101,1762937435162,-300.0,0.00016278,2]
[393706102,1762937435171,-300.0,0.00016278,2]
[393706103,1762937435181,-300.0,0.00016278,2]
[393706104,1762937435190,-300.0,0.00016278,2]
[393706105,1762937435199,-300.0,0.00016278,2]
[393706106,1762937435208,-300.0,0.00016278,2]
[393706107,1762937435217,-300.0,0.00016278,2]
[393706108,1762937435227,-300.0,0.00016278,2]
[393706109,1762937435235,-300.0,0.00016278,2]
[393706110,1762937435244,-300.0,0.00016278,2]
[393706111,1762937435253,-300.0,0.00016278,2]
[393706112,1762937435263,-300.0,0.00016278,2]
[393706113,1762937435272,-300.0,0.00016278,2]
[393706114,1762937435281,-300.0,0.00016278,2]
[393706115,1762937435291,-151.0,0.00016278,2]
[393706116,1762937435300,-1680.0,0.00016314,2]
[393706117,1762937435310,-420.0,0.00016314,2]
[393706118,1762937435319,-420.0,0.00016314,2]
[393706119,1762937435328,-420.0,0.00016314,2]
[393706120,1762937435337,-769.0,0.00016318,2]
[393706121,1762937435346,-500.0,0.00016318,2]
[393706122,1762937435355,-769.0,0.00016373,2]
[393706123,1762937435364,-297.20839093,0.00016373,2]
[393706124,1762937435373,-1680.0,0.00016395,2]
[393706125,1762937435382,-732.64845556,0.00016421,2]
[393706126,1762937435391,-1000.0,0.00016421,2]
[393706127,1762937435400,-1000.0,0.00016421,2]
[393706128,1762937435410,-1133.25158102,0.00016421,2]
[393706129,1762937435419,-769.0,0.00016427,2]
[393706130,1762937435428,-500.0,0.00016438,2]
[393706131,1762937435437,-500.0,0.00016438,2]
[393706132,1762937435446,-500.0,0.00016438,2]
[393706133,1762937435456,-500.0,0.00016438,2]
[393706134,1762937435466,-500.0,0.00016438,2]
[393706135,1762937435476,-500.0,0.00016438,2]
[393706136,1762937435486,-500.0,0.00016438,2]
[393706137,1762937435496,-500.0,0.00016438,2]
[393706138,1762937435506,-369.10059195,0.00016438,2]
[393706139,1762937435516,-16745.77680971,0.00016458,2]
[393706140,1762937435606,223.21650001,0.0001416,2]
[393706154,1762937438485,-151.0,0.00015857,2]
[393706156,1762937438495,-6329.78118709,0.00016458,2]